Cogmind - Beta 9.2 @@@ ROGUE MODE // 2019.12.12 @ 15:30:04 Player: Fleshy Vegetable Bird Result: Destroyed by D-53 Grenadier with Mini Grenade Launcher Performance ------------- Evolutions (1) 500 Regions Visited (4) 800 Robots Destroyed (41) 205 Value Destroyed (934) 934 Prototype IDs (3) 60 Alien Tech Used (0) 0 Bonus (-83) -83 TOTAL SCORE: 2416 Bonus ------- Friendly Fire -83 Cogmind --------- Core Integrity 0/400 Matter 227/300 Energy 34/100 System Corruption 2% Temperature Cool (0) Movement Core (900) Ox17 Location -9/Mines Parts ------- > --- POWER (1) -------- (None) > --- PROPULSION (3) --- (None) > --- UTILITY (3) ------ Large Storage Unit High-capacity Storage Unit > --- WEAPON (2) ------- Heavy Assault Rifle High-powered Shotgun > --- INVENTORY (18) --- Wheel Cesium-ion Thruster Large Storage Unit Improved Propulsion Shielding Hacking Suite Hacking Suite Improved EM Shotgun Improved EM Shotgun EM Pulse Cannon EM Pulse Cannon Heavy Particle Cannon Heavy Particle Cannon Assault Rifle Grenade Launcher Rocket Launcher Scythe Peak State ------------ > --- POWER ------------ Light Nuclear Core > --- PROPULSION ------- Wheel Wheel Wheel > --- UTILITY ---------- Large Storage Unit High-capacity Storage Unit Hacking Suite > --- WEAPON ----------- Improved EM Shotgun Improved EM Shotgun > --- INVENTORY -------- Improved Ion Engine Light Treads Light Treads Light Treads Wheel Cesium-ion Thruster Improved Propulsion Shielding Medium Armor Plating Hacking Suite Improved EM Shotgun EM Pulse Cannon EM Pulse Cannon Heavy Particle Cannon Heavy Particle Cannon Assault Rifle High-powered Shotgun Grenade Launcher Scythe [Rating: 21] Favorites ----------- Power Ion Engine Engine Ion Engine Power Core Light Nuclear Core Propulsion Wheel Treads Light Treads Wheel Wheel Utility Small Storage Unit Storage Small Storage Unit Hackware Hacking Suite Protection Medium Armor Plating Weapon Medium Laser Energy Gun Medium Laser Energy Cannon EM Pulse Cannon Ballistic Gun Assault Rifle Launcher Rocket Launcher Slashing Weapon Scythe Build | -11 -10 -10 -9 -9 ------- Run | Scr Mat Min Mat Min Slots Evolved 2 | . . . 2 . Power . | . . . . . Propulsion 1 | . . . 1 . Utility 1 | . . . 1 . Weapon . | . . . . . Parts Attached 40 | 7 2 6 21 4 Power 4 | 1 . 1 2 . Engine 3 | 1 . . 2 . Core 1 | . . 1 . . Reactor . | . . . . . Propulsion 11 | 2 1 2 6 . Treads 3 | . . . 3 . Leg . | . . . . . Wheel 8 | 2 1 2 3 . Hover . | . . . . . Flight . | . . . . . Utility 7 | 2 . 1 3 1 Device . | . . . . . Storage 4 | 2 . 1 1 . Processor . | . . . . . Hackware 1 | . . . 1 . Protection 2 | . . . 1 1 Artifact . | . . . . . Weapon 18 | 2 1 2 10 3 Energy Gun 10 | 1 1 1 7 . Energy Cannon 1 | . . . . 1 Ballistic Gun 4 | 1 . 1 1 1 Ballistic Cannon . | . . . . . Launcher 1 | . . . . 1 Special Weapon . | . . . . . Impact Weapon . | . . . . . Slashing Weapon 2 | . . . 2 . Piercing Weapon . | . . . . . Special Melee Weapon . | . . . . . Unidentified Prototypes 1 | . . . 1 . Parts Lost 16 | . . 4 6 6 Power 3 | . . 1 1 1 Propulsion 7 | . . 1 3 3 Utility 3 | . . . 1 2 Weapon 3 | . . 2 1 . Highest Loss Streak 6 | . . 4 6 6 Average Slot Usage (%) 97 | . 100 98 96 97 Engine 9 | . 14 11 5 10 Core 2 | . . 2 5 . Treads 8 | . . . 10 31 Wheel 21 | . 28 27 22 . Storage 24 | . 28 28 22 22 Hackware 2 | . . . 6 . Protection 2 | . . . 2 10 Energy Gun 17 | . 19 23 12 9 Ballistic Gun 6 | . 8 2 6 11 Naked Turns . | . . . . . Heaviest Build 64 | 17 17 45 64 64 Greatest Support 60 | 20 20 20 60 60 Greatest Overweight (x) 2 | 1 1 2 2 1 Average Overweight (x) . | . . 1 1 1 Largest Inventory Capacity 18 | 8 8 14 18 18 Average Capacity 14 | 6 8 11 17 18 Most Carried 18 | 8 8 14 18 17 Average Carried 12 | 4 7 9 15 16 Final Capacity 18 | 8 8 14 18 18 Final Carried 16 | 8 8 11 16 16 Class Distribution -------------------- 75% | Mutant 24% | Scavenger-Mutant Dominant Class ---------------- Mutant | -10/Materials Mutant | -10/Mines Scavenger-Mutant | -9/Materials Mutant | -9/Mines Resources | -11 -10 -10 -9 -9 ----------- Run | Scr Mat Min Mat Min Matter Collected 749 | 253 91 50 319 36 Remotely . | . . . . . Salvage Created 1382 | 121 106 294 646 215 Parts 101 | 10 6 23 51 11 Haulers Intercepted 2 | . 1 . 1 . Recyclers Shooed 2 | . . 2 . . Parts Field Recycled . | . . . . . Retrieved Matter . | . . . . . Parts Self-Destructed . | . . . . . Prevented . | . . . . . Kills | -11 -10 -10 -9 -9 ------- Run | Scr Mat Min Mat Min Combat Hostiles Destroyed 29 | . 3 6 13 7 Melee 4 | . . . 4 . Guns 24 | . 3 5 9 7 Classes Destroyed 10 | 2 2 2 3 1 Worker 1 | . . . 1 . Builder 1 | . . . 1 . Tunneler 4 | 2 . 1 1 . Hauler 2 | . 1 . 1 . Recycler 1 | 1 . . . . Operator 3 | . . 1 2 . Swarmer 10 | . 3 . 4 3 Grunt 14 | . . 6 5 3 Sentry 4 | . . . 4 . Demolisher 1 | . . . . 1 Best Kill Streak 6 | 3 3 2 4 6 Combat Bots Only 6 | . 3 2 4 6 Max Kills in Single Turn 3 | 1 2 1 3 1 Gunslinging 1 | . 1 . . . Exploded . | . . . . . Melee 1 | . . . 1 . Uniques/NPCs Destroyed . | . . . . . Combat | -11 -10 -10 -9 -9 -------- Run | Scr Mat Min Mat Min Damage Taken 2251 | . 110 458 796 887 Core 603 | . 24 173 270 136 Absorbed by Shields . | . . . . . Core Remaining (%) 60 | 100 . 21 . . Volleys Fired 98 | 5 13 35 27 18 Largest 2 | 2 2 2 2 2 Hottest 100 | 70 70 100 90 88 Shots Fired 173 | 10 26 57 47 33 Gun 169 | 10 26 57 47 29 Cannon 2 | . . . . 2 Launcher 2 | . . . . 2 Special . | . . . . . Kinetic 67 | 5 13 7 22 20 Thermal 73 | 5 13 50 5 . Explosive 2 | . . . . 2 Electromagnetic 31 | . . . 20 11 Robot Hit Streak 15 | 2 3 9 13 15 Robot Miss Streak 6 | 1 3 4 5 6 Penetration Max . | . . . . . Secondary Targets 4 | . 1 1 . 2 Max Gunslinging Chain 1 | . 1 1 . 1 Shots Hit Robots 133 | 6 13 40 51 23 Core Hits 75 | 4 5 19 30 17 Critical Hits 1 | . . . 1 . Critical Kills . | . . . . . Critical Parts Destroyed 1 | . . . 1 . Melee Attacks 25 | . . . 25 . Impact . | . . . . . Slashing 25 | . . . 25 . Piercing . | . . . . . Sneak Attacks 1 | . . . 1 . Combat Hostiles 1 | . . . 1 . Follow-up Attacks . | . . . . . Damage Inflicted 2255 | 71 116 502 1122 444 Guns 1770 | 71 116 502 744 337 Cannons 23 | . . . . 23 Explosions 84 | . . . . 84 Melee 378 | . . . 378 . Ramming . | . . . . . Kinetic 734 | 34 51 77 368 204 Thermal 578 | 37 65 425 51 . Explosive 84 | . . . . 84 Electromagnetic 481 | . . . 325 156 Impact . | . . . . . Slashing 378 | . . . 378 . Piercing . | . . . . . Highest Corruption 2 | . . . 2 2 Average Corruption 2 | . . . 2 2 Corruption Purged . | . . . . . Effects 5 | . . . 4 1 Message Errors 2 | . . . 1 1 Heat Flow Errors 1 | . . . 1 . Energy Discharges 1 | . . . 1 . Targeting Errors 1 | . . . 1 . Overload Shots . | . . . . . Overflow Damage 22 | . . . . 22 Projectiles . | . . . . . Explosions 22 | . . . . 22 Melee . | . . . . . Knockbacks . | . . . . . Impact . | . . . . . Kinetic . | . . . . . Secondary . | . . . . . Self-Inflicted Damage 41 | . . . . 41 Shots 1 | . . . . 1 Rammed . | . . . . . Targets Rammed . | . . . . . Kicked . | . . . . . Crushed . | . . . . . Highest Temperature 396 | 65 81 396 248 51 Average Temperature 86 | 35 32 163 35 13 Received Heat Transfer 360 | . 9 249 72 30 Effects 3 | . . 2 1 . Shutdowns 1 | . . 1 . . Energy Bleed 1 | . . . 1 . Interference 1 | . . 1 . . Siege Activations . | . . . . . Robots Corrupted . | . . . . . Combat Hostiles . | . . . . . Parts Fried . | . . . . . Impact Corruptions . | . . . . . Robots Melted 1 | . . 1 . . Combat Hostiles 1 | . . 1 . . Parts Melted 1 | . . 1 . . Heat Transferred 1702 | 111 185 1258 148 . Parts Sabotaged . | . . . . . Parts Stolen . | . . . . . Parts Stripped . | . . . . . Power Chain Reactions . | . . . . . Missiles Intercepted . | . . . . . Alert | -11 -10 -10 -9 -9 ------- Run | Scr Mat Min Mat Min Peak Influence 254 | 15 141 104 254 218 Average Influence 102 | 6 78 72 118 175 Maximum Alert Level 1 | . . . 1 1 Low Security (%) 86 | 100 100 100 87 41 Level 1 13 | . . . 12 58 Level 2 . | . . . . . Level 3 . | . . . . . Level 4 . | . . . . . Level 5 . | . . . . . High Security . | . . . . . Max Security . | . . . . . Squads Dispatched 1 | . . . 1 . Investigation . | . . . . . Extermination . | . . . . . Reinforcement 1 | . . . 1 . Assault . | . . . . . Garrison . | . . . . . Intercept . | . . . . . Construction Impeded . | . . . . . Haulers Reinforced . | . . . . . Stealth | -11 -10 -10 -9 -9 --------- Run | Scr Mat Min Mat Min Distress Signals 5 | . 1 . 4 . Communications Jammed . | . . . . . Distress Signals . | . . . . . Times Spotted 49 | . 11 8 20 10 Peak Tracking Total 5 | . 5 2 4 5 Tactical Retreats 2 | . 2 . . . Traps | -11 -10 -10 -9 -9 ------- Run | Scr Mat Min Mat Min Traps Triggered 1 | . . . 1 . Indirectly . | . . . . . Trap Hack Attempts . | . . . . . Triggered . | . . . . . Disarmed . | . . . . . Reprogrammed . | . . . . . Reused . | . . . . . Traps Extracted . | . . . . . Installed . | . . . . . Triggered . | . . . . . Machines | -11 -10 -10 -9 -9 ---------- Run | Scr Mat Min Mat Min Machines Disabled . | . . . . . Max in Single Turn . | . . . . . Machines Sabotaged . | . . . . . Garrisons Compromised . | . . . . . Overloaded Fab Kills . | . . . . . Fab Network Shutdowns . | . . . . . Hacking | -11 -10 -10 -9 -9 --------- Run | Scr Mat Min Mat Min Machines Accessed 9 | . 3 1 5 . Terminals 6 | . 3 . 3 . Fabricators . | . . . . . Repair Stations . | . . . . . Recycling Units . | . . . . . Scanalyzers 2 | . . . 2 . Garrison Access . | . . . . . Total Hacks 38 | . 12 1 25 . Successful 29 | . 8 1 20 . Failed 9 | . 4 . 5 . Catastrophic . | . . . . . Database Lockouts . | . . . . . Manual 26 | . 12 . 14 . Terminals 28 | . 12 . 16 . Fabricators . | . . . . . Repair Stations . | . . . . . Recycling Units . | . . . . . Scanalyzers 9 | . . . 9 . Garrison Access . | . . . . . Terminal Hacks 8 | . 3 1 4 . Part Schematic 1 | . 1 . . . Prototype ID Bank 1 | . 1 . . . Open Door 1 | . . 1 . . Terminal Index 2 | . 1 . 1 . Recall Investigation 1 | . . . 1 . Recall Reinforcements 1 | . . . 1 . Zone Layout 1 | . . . 1 . Fabricator Hacks . | . . . . . Repair Station Hacks . | . . . . . Recycling Unit Hacks . | . . . . . Scanalyzer 8 | . . . 8 . Insert Component 4 | . . . 4 . Analyze 4 | . . . 4 . Garrison Access Hacks . | . . . . . Unauthorized Hacks 29 | . 11 . 18 . Terminals 13 | . 5 . 8 . Track 4 | . 1 . 3 . Assimilate 2 | . 1 . 1 . Botnet 5 | . 2 . 3 . Operators 2 | . 1 . 1 . Fabricators . | . . . . . Repair Stations . | . . . . . Recycling Units . | . . . . . Scanalyzers . | . . . . . Garrison Access . | . . . . . Data Cores Recovered . | . . . . . Used . | . . . . . Hacking Detections 7 | . 3 . 4 . Full Trace Events 1 | . . . 1 . Feedback Events . | . . . . . Feedback Blocked . | . . . . . Robot Schematics Acquired . | . . . . . Robots Built . | . . . . . Matter . | . . . . . Time . | . . . . . Total Robot Build Rating . | . . . . . Part Schematics Acquired 5 | . 1 . 4 . Parts Built . | . . . . . Matter . | . . . . . Time . | . . . . . Total Part Build Rating . | . . . . . Parts Repaired . | . . . . . Time . | . . . . . Parts Recycled . | . . . . . Recycled Matter . | . . . . . Retrieved Matter . | . . . . . Retrieved Components . | . . . . . Parts Scanalyzed 4 | . . . 4 . Part Schematics Acquired 4 | . . . 4 . Parts Damaged . | . . . . . Bothacking | -11 -10 -10 -9 -9 ------------ Run | Scr Mat Min Mat Min Used RIF Installer . | . . . . . Robots Hacked . | . . . . . Non-combat . | . . . . . Combat . | . . . . . Robot Hacks Applied . | . . . . . Relay Couplers Released . | . . . . . Robots Rewired . | . . . . . Allies Hacked . | . . . . . Hacks Repelled . | . . . . . Allies | -11 -10 -10 -9 -9 -------- Run | Scr Mat Min Mat Min Total Allies 2 | . 1 . 1 . Largest Group 1 | . 1 1 1 . Highest-Rated Group 10 | . 10 10 10 . Highest-Rated Ally 10 | . 10 10 10 . Total Orders 4 | . 2 . 2 . GOTO 2 | . 1 . 1 . FOLLOW 2 | . 1 . 1 . Ally Attacks . | . . . . . Total Damage . | . . . . . Kills . | . . . . . Allies Corrupted . | . . . . . Allies Melted . | . . . . . Intel | -11 -10 -10 -9 -9 ------- Run | Scr Mat Min Mat Min Robot Analysis Total . | . . . . . Derelict Logs Recovered 3 | . . 1 . 2 Drone Launches . | . . . . . Drone Recoveries . | . . . . . Exploration | -11 -10 -10 -9 -9 ------------- Run | Scr Mat Min Mat Min Turns Passed 2031 | 87 233 670 720 321 Spaces Moved 1394 | 57 187 598 408 144 Core 22 | 22 . . . . Treads 224 | . . . 80 144 Legs . | . . . . . Wheels 1148 | 35 187 598 328 . Hover . | . . . . . Flight . | . . . . . Fastest Speed 50 | 50 80 80 90 180 Average Speed 103 | 82 82 91 107 180 Slowest Speed 180 | 100 90 100 180 180 Overloaded Moves . | . . . . . Propulsion Burnouts . | . . . . . Robots Hopped . | . . . . . Cave-ins Triggered 1 | . . . 1 . Exploration Rate (%) 43 | 3 33 99 41 40 Regions Visited 4 Branch Regions 2 Pre-discovered Areas 1 | . . 1 . . Known Exits Taken . | . . . . . Unknown Exits Taken 4 | 1 1 1 1 . Scrap Searched 1 | . . 1 . . Spaces Dug 10 | . . . 10 . Terrain Destroyed 29 | . . . 10 19 Melee 10 | . . . 10 . Projectile . | . . . . . AOE 19 | . . . . 19 Actions | -11 -10 -10 -9 -9 --------- Run | Scr Mat Min Mat Min Total 1768 | 86 240 666 603 173 Wait 148 | 3 33 13 93 6 Move 1389 | 56 186 597 406 144 Hop . | . . . . . Pick Up 53 | 15 3 11 23 1 Fast Attach . | . . . . . Attach 23 | 7 . 4 11 1 Detach . | . . . . . Swap 17 | . 2 2 10 3 Drop 14 | . 3 4 7 . Fire 98 | 5 13 35 27 18 Melee 25 | . . . 25 . Ram . | . . . . . Kick . | . . . . . Crush . | . . . . . Escape Stasis 1 | . . . 1 . Rewire . | . . . . . Trap . | . . . . . Miscellaneous . | . . . . . Route ------- -11/Scrapyard -10/Materials (discovered 2 exits: *Mat / *Min) -10/Mines (discovered 2 exits: *Mat x2) -9/Materials (discovered 2 exits: [*Mat] / [*Min]) -9/Mines History --------- Turn | Location | Event 14 | -11/Scrapyard | Discovered new exit (range 16) 88 | -11/Scrapyard | Entered Materials 209 | -10/Materials | Discovered new exit (range 8) 266 | -10/Materials | Discovered new exit (range 8) 308 | -10/Materials | Build established: Mutant 321 | -10/Materials | Entered Mines 321 | -10/Mines | Accompanied by 1 ally 346 | -10/Mines | Discovered new exit (range 8) 355 | -10/Mines | Met a Derelict bent on vengeance 733 | -10/Mines | Discovered new exit (range 7) 752 | -10/Mines | Met a Derelict who couldn't figure out how to use a Trap Extractor 846 | -10/Mines | Core integrity fell below 50% 899 | -10/Mines | Lost 4 parts (1p1n2w) 991 | -10/Mines | Entered Materials 991 | -9/Materials | Evolved 2 slots: Propulsion x1, Utility x1 1199 | -9/Materials | Discovered new exit (range 16) 1316 | -9/Materials | Build established: Scavenger-Mutant 1454 | -9/Materials | Discovered new exit (range 8) 1470 | -9/Materials | Crushed by falling debris 1482 | -9/Materials | Core integrity fell below 50% 1524 | -9/Materials | Lost 6 parts (1p3n1u1w) 1711 | -9/Materials | Entered Mines 1722 | -9/Mines | Learned Materials terminal intel 1773 | -9/Mines | Build established: Mutant 1841 | -9/Mines | Received a Rocket Launcher from a helpful Derelict 1898 | -9/Mines | Learned Materials trap positions 1988 | -9/Mines | Assembled infested the area 2025 | -9/Mines | Core integrity fell below 20% 2032 | -9/Mines | Destroyed by D-53 Grenadier with Mini Grenade Launcher Last Messages --------------- 01989_ R I095<=J5UJR1WVN1Q7OLEGUDQO9Q1L/ 01994_ T-07 Excavator destroyed. 02002_ Destroyed Asb. Hover Unit. 02002_ Med. Armor Plating destroyed. 02002_ Destroyed Med. Armor Plating. 02005_ as-46896 powers down. 02005_ as-22416 powers down. 02010_ C-30 ARC bursts open, deploying its payload. 02010_ D-53 Grenadier unfolds itself. 02012_ Lgt. Ion Engine destroyed. 02012_ as-22416 destroyed. 02015_ The unstable cave ceiling collapses. 02018_ Lgt. Armor Plating destroyed. 02020_ Lgt. Treads destroyed. 02021_ The unstable cave ceiling collapses. 02022_ Lgt. Treads destroyed. 02025_ D-53 Grenadier destroyed. 02025_ Switching to secondary target: D-53 Grenadier. 02028_ Lgt. Treads destroyed. 02030_ The unstable cave ceiling collapses. Map ----- +----------------------------------------------------+ | | | | | | | | | | | | | | | | | | | | | | | | | | | | | | | | | | | ?????????????????????????????????????????????????? | | ?????????????????????????????????????????????????? | | ???????????????????????????######?#####??????????? | | ?????????????????????####### ## ##?????????? | | ?????????????????????# # ##????????? | | ????????????????????## d #????????? | | ?????????????# ##### % % #????????? | | ?????????????# a = ##????????? | | ?????????????# @ #?## #?????????? | | ?????????????##### ###?## #####?????? | | ?????????????????## #??## #?????? | | ??????????????????## ##?## #?????? | | ???????????????????## ##??# ## | | ????????????????????# #???# ##? | | ????????????????????# ???## ##???##### ## | | ????????????????????# #????# ###???????????? | | ????????????????????## ####????# #########?????? | | ?????????????????????####????????# #?????? | | ?????????????????????????????????######### #?????? | | ?????????????????????????????????????????# ####??? | | ?????????????????????????????????????????# #??? | | ?????????????????????????????????????????#### #??? | | ????????????????????????????????????????????# #??? | | ????????????????????????????????????????????# #??? | | ????????????????????????????????????????????# #??? | | ????????????????????????????????????????????# #??? | | ????????????????????????????????????????????# #??? | | ????????????????????????????????????????????# #??? | | ????????????????????????????????????????????# #??? | | ????????????????????????????????????????????# #??? | | ????????????????????????????????????????????# #??? | | ????????????????????????????????????????????# #??? | | ????????????????????????????????????????????# #?## | +----------------------------------------------------+ Best States ------------- Heat Dissipation 28 Energy Generation 14 Energy Capacity 265 Matter Stores 300 Matter Capacity 300 Sight Range 16 Terrain Scan Density 10 Armor Coverage 225 Evasion (%) 44 Recoil Reduction 3 Offensive Hacking 10 Item Schematics ----------------- Lrg. Storage Unit | -10/Materials | Hacked Cesium-ion Thruster | -9/Materials | Scanalyzed Hacking Suite | -9/Materials | Scanalyzed Imp. Propulsion Shielding | -9/Materials | Scanalyzed Imp. Ion Engine | -9/Materials | Scanalyzed Robot Schematics ------------------ None Fabricated ------------ Nothing Alien Tech Used ----------------- None Achievements -------------- None Challenges ------------ None Game ------ Seed ScanCloakEngine Manual? 0 Play Time 00:19:30 Cumulative 232.1 hours Start 2019.12.12 @ 14:55:10 End 2019.12.12 @ 15:30:04 Sessions 1 Manual Loads 0 Difficulty Rogue Special Mode None Game No. 303 Rogue 303 Adventurer 0 Explorer 0 Win Type - Total 2 Types 1/0/0/1/0/0/0 Lore% 58 Gallery% 79 Achievement% 55 Wizard Run 0 Options --------- ASCII 0 Keyboard 0 Movement Numpad Keybinds 0 Fullscreen 1 Font 16/Terminus Map View 75x55 Tactical HUD 1 Map Filters NONE Filters NONE Steam 1 RUN: adab4089-4874-4520-81d9-fb252b99da9c